bitfinex-derivatives/quotes_ETHF0:USTF0_20250502
["timestamp","ask_amount","ask_price","bid_price","bid_amount"]
[1746176167950,1.09711,1822.5,1822.4,2.5477]
[1746176170959,1.09711,1822.5,1822.4,1.6789]
[1746176172056,1.09717,1822.4,1822.3,44.306]
[1746176172261,2.71527,1822.4,1822.3,40.8]
[1746176173161,1.09723,1822.3,1822.2,5.6829]
[1746176173462,1.90733,1822.3,1822.2,5.6829]
[1746176173653,1.90733,1822.3,1822.2,46.4829]
[1746176174963,1.90733,1822.3,1822.2,43.2751]
[1746176177666,1.90733,1822.3,1822.2,46.4829]
[1746176178960,1.90733,1822.3,1822.2,47.58019]
[1746176179466,1.90733,1822.3,1822.2,46.4829]
[1746176181574,1.90733,1822.3,1822.2,3.2078]
[1746176181771,3.56413,1822.3,1822.2,3.2078]
[1746176182770,3.56413,1822.3,1822.2,4.8241]
[1746176185576,3.56413,1822.3,1822.2,3.2078]
[1746176191280,1.90733,1822.3,1822.2,3.2078]
[1746176192174,3.52673,1822.3,1822.2,3.2078]
[1746176192980,1.09729,1822.2,1822.1,1.5919]
[1746176199387,3.65673771,1822.4,1822.1,1.5919]
[1746176199987,10.80053972,1822.5,1822.1,2.68924]
[1746176199988,1.09723,1822.3,1822.1,2.68924]
[1746176200285,1.09723,1822.3,1822.2,1.7442]
[1746176207093,1.09723,1822.3,1822.2,5.4402]
[1746176209088,1.09723,1822.3,1822.2,1.7442]
[1746176212200,2.77323,1822.3,1822.2,1.7442]
[1746176213286,6.42996771,1822.3,1822.2,1.7442]
[1746176218892,8.96631088,1822.3,1822.2,1.7442]
[1746176219400,7.29031088,1822.3,1822.2,4.952]
[1746176220195,7.29031088,1822.3,1822.2,9.74529]
[1746176220500,7.29031088,1822.3,1822.2,8.648]
[1746176221903,7.29031088,1822.3,1822.2,9.74529]
[1746176222200,1.09723,1822.3,1822.2,6.04929]
[1746176222702,1.09723,1822.3,1822.2,4.952]
[1746176223199,1.09723,1822.3,1822.2,9.74529]
[1746176223401,1.09723,1822.3,1822.2,8.648]
[1746176224508,1.09723,1822.3,1822.2,9.74529]
[1746176225204,4.76560819,1822.3,1822.2,9.74529]
[1746176227003,4.76560819,1822.3,1822.2,8.648]
[1746176227306,4.76560819,1822.3,1822.2,9.74529]
[1746176228405,3.66837819,1822.3,1822.2,9.74529]
[1746176228797,4.76560819,1822.3,1822.2,9.74529]
[1746176228997,3.66837819,1822.3,1822.2,9.74529]
[1746176229205,4.76560819,1822.3,1822.2,9.74529]
[1746176229507,3.66837819,1822.3,1822.2,9.74529]
[1746176229805,4.76556819,1822.4,1822.2,9.74529]
[1746176230004,4.76556819,1822.4,1822.3,2.4279]
[1746176230204,4.76556819,1822.4,1822.3,6.9773]
[1746176232103,4.76556819,1822.4,1822.3,3.2813]
[1746176233401,4.76556819,1822.4,1822.3,2.4545]
[1746176233602,6.46886819,1822.4,1822.3,2.4545]
[1746176244022,8.99351813,1822.4,1822.3,2.4545]
[1746176246016,1.09723,1822.3,1822.2,3.2078]
[1746176246216,1.09723,1822.3,1822.2,5.8053]
[1746176247115,1.09723,1822.3,1822.2,9.5013]
[1746176248116,1.09723,1822.3,1822.2,6.2935]
[1746176248311,2.77363,1822.3,1822.2,9.5013]
[1746176248616,1.09723,1822.3,1822.2,10.59859]
[1746176250617,6.59063972,1822.4,1822.3,1.09723]
[1746176250821,6.59063972,1822.4,1822.3,2.74493]
[1746176251117,6.59063972,1822.4,1822.3,6.44093]
[1746176252722,5.49342972,1822.4,1822.3,6.44093]
[1746176253422,5.49342972,1822.4,1822.3,9.94693]
[1746176255018,6.59059972,1822.4,1822.3,9.94693]
[1746176255614,1.09717,1822.4,1822.3,9.94693]
[1746176255923,10.25917388,1822.5,1822.4,1.09717]
[1746176256119,10.25917388,1822.5,1822.4,2.5423]
[1746176256424,10.25917388,1822.5,1822.4,3.63947]
[1746176256722,10.25917388,1822.5,1822.4,2.5423]
[1746176256926,10.25917388,1822.5,1822.4,3.4001]
[1746176257119,10.25917388,1822.5,1822.4,7.0961]
[1746176258829,10.25917388,1822.5,1822.4,8.19327]
[1746176259733,1.09715,1822.5,1822.4,8.19327]
[1746176260133,1.09715,1822.5,1822.4,11.40107]
[1746176261630,6.50658416,1822.6,1822.5,1.09711]
[1746176261830,4.76568416,1822.6,1822.5,2.70401]
[1746176262233,4.76568416,1822.6,1822.5,6.40001]
[1746176263635,4.76568416,1822.6,1822.5,5.3029]
[1746176265336,6.48998416,1822.6,1822.5,5.3029]
[1746176267739,6.48998416,1822.6,1822.5,6.40001]
[1746176267939,6.48998416,1822.6,1822.5,5.3029]
[1746176270139,6.48998416,1822.6,1822.5,6.40001]
[1746176270342,6.48998416,1822.6,1822.5,5.3029]
[1746176271242,3.66859416,1822.6,1822.5,2.70401]
[1746176271638,4.76564416,1822.6,1822.5,2.70401]
[1746176271940,4.76564416,1822.6,1822.5,1.6069]
[1746176272138,7.35124416,1822.6,1822.5,1.6069]
[1746176278348,1.09711,1822.5,1822.4,9.9716]
[1746176278547,3.55731,1822.5,1822.4,9.9716]
[1746176278746,1.6505,1822.5,1822.4,11.06877]
[1746176278947,1.6505,1822.5,1822.4,12.82627]
[1746176279142,1.6505,1822.5,1822.4,16.52227]
[1746176279844,2.74761,1822.5,1822.4,16.52227]
[1746176280952,2.74761,1822.5,1822.4,10.59027]
[1746176281852,5.61067416,1822.6,1822.5,1.09711]
[1746176282045,5.61067416,1822.6,1822.5,2.69521]
[1746176282251,4.51359416,1822.6,1822.5,6.39121]
[1746176282846,5.61064416,1822.6,1822.5,6.39121]
[1746176284354,5.61064416,1822.6,1822.5,9.59901]
[1746176285755,3.66859416,1822.6,1822.5,9.59901]
[1746176285947,4.76564416,1822.6,1822.5,10.42271]
[1746176286147,4.76564416,1822.6,1822.5,16.35471]
[1746176286657,3.66859416,1822.6,1822.5,21.35471]
[1746176286848,3.66859416,1822.7,1822.6,1.09705]
[1746176287048,3.66859416,1822.7,1822.6,7.12615]
[1746176289645,3.66859416,1822.7,1822.6,18.05815]
[1746176290456,3.66859416,1822.7,1822.6,13.05815]
[1746176290655,3.66859416,1822.7,1822.6,18.05815]
[1746176290857,3.66859416,1822.7,1822.6,13.05815]
[1746176291052,3.66859416,1822.7,1822.6,18.05815]
[1746176291354,4.81611853,1823.0,1822.6,19.70372]
[1746176291559,4.81611853,1823.0,1822.9,4.30467]
[1746176291761,4.81611853,1823.0,1822.9,53.60867]
[1746176292053,3.60031853,1823.0,1822.9,59.54067]
[1746176292250,3.60031853,1823.0,1822.9,63.23667]
[1746176292452,3.60031853,1823.0,1822.9,64.03757]
[1746176292860,3.60031853,1823.4,1823.0,2.74202]
[1746176293051,3.60031853,1823.4,1823.3,3.2078]
[1746176293247,3.60031853,1823.4,1823.3,7.80843]
[1746176293846,3.60031853,1823.4,1823.3,8.60933]
[1746176294059,3.60031853,1823.4,1823.3,12.30533]
[1746176294661,3.60031853,1823.4,1823.3,13.13583]
[1746176295751,3.60031853,1823.4,1823.3,14.81953]
[1746176297655,1.09657,1823.4,1823.3,13.18813]
[1746176297956,6.09657,1823.4,1823.3,6.9038]
[1746176298154,7.77987,1823.4,1823.3,3.2078]
[1746176300054,1.09669,1823.2,1823.1,3.502]
[1746176300452,1.09669,1823.2,1823.1,4.59875]
[1746176300652,2.77179,1823.2,1823.1,4.59875]
[1746176301051,2.77179,1823.2,1823.1,3.502]
[1746176301252,2.77179,1823.2,1823.1,4.59875]
[1746176301455,2.77179,1823.2,1823.1,6.31075]
[1746176301858,2.77179,1823.2,1823.1,5.214]
[1746176302357,1.6751,1823.2,1823.1,9.51855]
[1746176302957,2.77179,1823.2,1823.1,9.51855]
[1746176303760,2.77179,1823.2,1823.1,8.4218]
[1746176305863,2.77179,1823.2,1823.1,6.7098]
[1746176310965,2.77179,1823.2,1823.1,8.3114]
[1746176313058,2.77179,1823.2,1823.1,9.40815]
[1746176314470,1.6751,1823.2,1823.1,9.40815]
[1746176314673,0.797,1823.2,1823.1,9.40815]
[1746176314869,2.74335,1823.3,1823.2,1.09669]
[1746176315068,2.74335,1823.3,1823.2,2.83899]
[1746176318379,1.6467,1823.3,1823.2,2.83899]
[1746176318674,2.74333,1823.3,1823.2,2.83899]
[1746176319173,1.91412,1823.4,1823.3,1.09663]
[1746176319366,0.8175,1823.4,1823.3,5.93783]
[1746176319566,1.91407,1823.4,1823.3,5.93783]
[1746176320674,1.91407,1823.4,1823.3,4.8412]
[1746176320875,3.57527,1823.4,1823.3,5.93783]
[1746176327082,3.57527,1823.4,1823.3,2.73003]
[1746176328079,3.57527,1823.4,1823.3,2.4947]
[1746176329884,3.57527,1823.4,1823.3,3.59133]
[1746176332780,3.57527,1823.4,1823.3,6.79913]
[1746176334388,3.57527,1823.4,1823.3,5.7025]
[1746176335988,3.57527,1823.4,1823.3,6.79913]
[1746176336590,3.57527,1823.4,1823.3,3.59133]
[1746176336789,3.57527,1823.4,1823.3,6.79913]
[1746176337992,1.91407,1823.4,1823.3,6.79913]
[1746176339699,0.8175,1823.4,1823.3,6.79913]
[1746176339888,2.70385,1823.6,1823.5,1.09651]
[1746176340089,1.09651,1823.5,1823.4,3.66192]
[1746176341292,1.09649,1823.6,1823.5,1.09648]
[1746176341489,2.79283,1823.7,1823.6,1.09645]
[1746176341689,2.79283,1823.7,1823.5,3.67337]
[1746176341889,2.79283,1823.7,1823.6,1.7574]
[1746176344098,2.79279,1823.7,1823.6,4.9652]
[1746176345592,4.40649,1823.7,1823.6,4.9652]
[1746176348303,2.79279,1823.7,1823.6,4.9652]
[1746176349101,2.79279,1823.7,1823.6,6.06165]
[1746176350010,1.09639,1823.7,1823.6,6.06165]
[1746176351401,1.13483,1823.8,1823.6,6.06165]
[1746176351603,1.13483,1823.8,1823.7,2.80619]
[1746176351798,2.23119,1823.8,1823.7,2.5215]
[1746176352707,1.13483,1823.8,1823.7,3.61789]
[1746176353004,1.13483,1823.8,1823.7,7.95059]
[1746176359112,2.23116,1823.8,1823.7,6.8542]
[1746176359416,2.23116,1823.8,1823.7,5.2098]
[1746176359917,3.06826,1823.8,1823.7,5.2098]
[1746176360813,3.06826,1823.8,1823.7,6.30619]
[1746176361014,1.09639,1823.7,1823.6,10.23621]
[1746176361216,1.09639,1823.7,1823.6,15.37931]
[1746176362711,1.09639,1823.7,1823.6,12.6378]
[1746176363014,2.76819,1823.7,1823.6,12.6378]
[1746176363215,2.76819,1823.7,1823.6,6.7058]
[1746176365824,2.76819,1823.7,1823.6,3.2078]
[1746176366123,6.46419,1823.7,1823.6,3.2078]
[1746176368131,2.76819,1823.7,1823.6,3.2078]
[1746176369326,6.46419,1823.7,1823.6,3.2078]
[1746176369621,11.46419,1823.7,1823.6,3.2078]
[1746176369825,1.09663,1823.3,1823.2,8.3874]
[1746176370525,1.09663,1823.3,1823.2,9.48409]
[1746176370728,1.09663,1823.3,1823.2,8.3874]
[1746176371029,1.09663,1823.3,1823.2,9.48409]
[1746176371728,2.73452,1823.4,1823.2,9.48409]
[1746176371927,1.09663,1823.3,1823.2,9.48409]
[1746176372123,1.09663,1823.3,1823.2,7.80249]
[1746176374028,1.09662,1823.4,1823.2,7.80249]
[1746176374232,1.09662,1823.4,1823.3,1.96583]
[1746176374430,1.09662,1823.4,1823.3,0.8692]
[1746176375127,6.62322855,1823.8,1823.5,1.09649]
[1746176375323,0.8799,1823.7,1823.4,5.16433]
[1746176375523,1.09649,1823.6,1823.4,5.16433]
[1746176376130,2.85869,1823.6,1823.4,5.16433]
[1746176376534,1.09651,1823.5,1823.4,5.16433]
[1746176376729,2.8587,1823.6,1823.4,5.16433]
[1746176377133,2.8587,1823.6,1823.5,1.09651]
[1746176377527,1.7622,1823.6,1823.5,1.09651]
[1746176377727,1.97633,1823.7,1823.5,1.09651]
[1746176377933,1.09645,1823.6,1823.5,1.09651]
[1746176378636,1.09645,1823.6,1823.5,4.59451]
[1746176379223,3.56733,1823.7,1823.5,4.59451]
[1746176380038,2.4709,1823.7,1823.5,4.59451]
[1746176380338,1.09645,1823.6,1823.5,4.59451]
[1746176381337,3.56733,1823.7,1823.6,1.09645]
[1746176381636,3.56733,1823.7,1823.6,4.30425]
[1746176381834,2.4709,1823.7,1823.6,4.30425]
[1746176382032,1.13483,1823.8,1823.7,1.09639]
[1746176382226,1.13483,1823.8,1823.7,1.97879]
[1746176382535,2.23116,1823.8,1823.7,1.97879]
[1746176384037,2.23116,1823.8,1823.7,0.8824]
[1746176387028,2.23116,1823.8,1823.7,4.0902]
[1746176387331,2.23116,1823.8,1823.7,5.799]
[1746176389335,2.23116,1823.8,1823.7,6.89539]
[1746176389535,2.23116,1823.8,1823.7,5.799]
[1746176390440,2.23116,1823.8,1823.7,6.89539]
[1746176392245,1.13483,1823.8,1823.7,6.89539]
[1746176395140,1.13483,1823.8,1823.7,10.59139]
[1746176399346,1.13483,1823.8,1823.7,11.02148811]
[1746176400043,1.13483,1823.8,1823.7,10.59139]
[1746176402161,2.23116,1823.8,1823.7,6.9038]
[1746176402466,9.71006,1823.8,1823.7,6.9038]
[1746176402857,9.71006,1823.8,1823.7,3.696]
[1746176403255,12.30973,1823.8,1823.4,7.24234184]
[1746176403467,2.71531,1823.7,1823.5,3.2078]
[1746176403669,1.97635,1823.6,1823.5,4.8784]
[1746176403968,2.4988,1823.6,1823.4,7.24234184]
[1746176404267,2.4789,1823.5,1823.4,7.24234184]
[1746176404471,0.8799,1823.6,1823.4,52.93104184]
[1746176404674,1.13483,1823.8,1823.6,1.09645]
[1746176404974,1.09641,1823.7,1823.5,3.496]
[1746176405170,1.97635,1823.6,1823.5,7.192]
[1746176405771,8.66465,1823.6,1823.5,3.696]
[1746176405971,3.66465,1823.6,1823.5,3.696]
[1746176406170,1.09651,1823.5,1823.4,3.2078]
[1746176406371,2.78481,1823.5,1823.4,3.2078]
[1746176406669,7.78481,1823.5,1823.4,3.2078]
[1746176407174,11.48081,1823.5,1823.4,3.2078]
[1746176407868,6.48081,1823.5,1823.4,3.2078]
[1746176408063,5.3843,1823.5,1823.2,3.2078]
[1746176408263,1.09675,1823.1,1823.0,10.45014184]
[1746176409571,3.64815,1823.1,1823.0,10.45014184]
[1746176410379,2.74068,1824.0,1823.0,10.45014184]
[1746176410575,1.09669,1823.2,1823.1,1.6007]
[1746176411070,3.69519,1823.2,1823.1,1.6007]
[1746176411779,1.09675,1823.1,1823.0,3.2078]
[1746176411971,2.85945,1823.1,1823.0,4.8085]
[1746176412169,2.85945,1823.1,1823.0,3.2078]
[1746176412369,2.85945,1823.1,1823.0,44.0078]
[1746176414480,2.85945,1823.1,1823.0,40.8]
[1746176416276,2.85945,1823.1,1823.0,42.5342]
[1746176417080,2.85945,1823.1,1823.0,40.8]
[1746176418778,1.09675,1823.1,1823.0,40.8]
[1746176418975,1.09687,1822.9,1822.8,3.2078]
[1746176419375,1.09687,1822.9,1822.8,44.0078]
[1746176419575,3.55027,1822.9,1822.8,44.0078]
[1746176420274,3.55027,1822.9,1822.8,3.2078]
[1746176420581,3.55027,1822.9,1822.6,4.8549]
[1746176420582,1.09699,1822.7,1822.6,4.8549]
[1746176420874,1.09699,1822.7,1822.6,45.6549]
[1746176421073,1.09699,1822.7,1822.6,44.0078]
[1746176421280,1.92939,1822.7,1822.6,44.0078]
[1746176422081,1.92939,1822.7,1822.3,4.8549]
[1746176422082,0.8324,1822.7,1822.3,4.8549]
[1746176422276,1.09716,1822.5,1822.4,1.6471]
[1746176422474,1.09716,1822.5,1822.4,42.4471]
[1746176423183,1.09716,1822.5,1822.4,46.1431]
[1746176423984,0.8065,1822.6,1822.4,46.1431]
[1746176424179,5.9499,1823.0,1822.5,4.8125]
[1746176424374,1.09705,1822.6,1822.5,4.8125]
[1746176425178,1.09705,1822.6,1822.5,6.9038]
[1746176425383,1.95675,1822.6,1822.5,6.9038]
[1746176425584,1.95675,1822.6,1822.5,8.5085]
[1746176426185,1.95675,1822.6,1822.5,4.8125]
[1746176426986,1.95675,1822.6,1822.5,3.2078]
[1746176432892,1.95675,1822.6,1822.5,4.0409]
[1746176433091,1.09705,1822.6,1822.5,4.8838]
[1746176433588,1.09697,1822.8,1822.6,1.09702]
[1746176433892,1.09683,1823.0,1822.8,1.0969]
[1746176434079,1.09683,1823.0,1822.9,6.4875]
[1746176435297,1.0968,1823.1,1822.9,6.4875]
[1746176435486,1.0968,1823.1,1823.0,1.6064]
[1746176437095,4.48033885,1823.3,1823.0,1.6064]
[1746176437287,1.09673,1823.2,1823.0,2.70319]
[1746176437487,1.09673,1823.2,1823.1,1.6064]
[1746176439590,2.74124,1823.6,1823.1,5.91091]
[1746176439788,1.09663,1823.3,1823.2,0.8563]
[1746176439989,1.09663,1823.3,1823.2,2.5321]
[1746176442494,1.6055,1823.6,1823.2,2.5321]
[1746176442693,1.09657,1823.4,1823.3,2.5359]
[1746176444803,1.09657,1823.4,1823.3,1.7338]
[1746176447306,2.76327,1823.4,1823.3,1.7338]
[1746176449105,1.09669,1823.2,1823.1,3.2078]
[1746176449309,1.09669,1823.2,1823.1,4.8889]
[1746176453506,1.09669,1823.2,1823.1,1.6811]
[1746176453906,2.82389,1823.2,1823.1,1.6811]
[1746176454997,1.95179,1823.2,1823.1,1.6811]
[1746176456810,1.95179,1823.2,1823.1,4.8889]
[1746176457003,1.09669,1823.2,1823.1,4.8889]
[1746176458118,1.09669,1823.2,1823.1,1.6811]
[1746176461419,1.7054,1823.3,1823.1,5.98562]
[1746176461719,1.09669,1823.2,1823.1,4.8889]
[1746176461920,1.09669,1823.2,1823.1,3.2078]
[1746176462218,1.09666,1823.3,1823.1,9.30453]
[1746176462419,1.09666,1823.3,1823.1,4.30453]
[1746176462622,1.09666,1823.3,1823.1,4.74694418]
[1746176462920,1.09669,1823.2,1823.1,3.65021418]
[1746176463123,1.09669,1823.2,1823.1,4.74696418]
[1746176463314,1.09669,1823.2,1823.1,3.2078]
[1746176466311,1.09675,1823.1,1823.0,7.545]
[1746176467123,1.09675,1823.1,1823.0,16.241]
[1746176468824,1.09675,1823.1,1823.0,17.33781]
[1746176469722,3.3094,1823.5,1823.0,16.241]
[1746176470024,1.09651,1823.5,1823.4,3.2078]
[1746176470225,1.09645,1823.7,1823.4,47.5628]
[1746176470426,1.09639,1823.7,1823.6,3.2078]
[1746176470626,4.78986885,1823.8,1823.6,3.2078]
[1746176471125,1.09639,1823.7,1823.6,3.2078]
[1746176474527,1.09639,1823.7,1823.6,9.1398]
[1746176477330,1.09639,1823.7,1823.6,10.8564]
[1746176478930,1.13483,1823.8,1823.6,10.8564]
[1746176479132,1.13483,1823.8,1823.7,1.7202]
[1746176479321,2.23116,1823.8,1823.7,1.7202]
[1746176481735,3.83376,1823.8,1823.7,1.7202]
[1746176485536,2.73743,1823.8,1823.7,2.81659]
[1746176485730,3.83376,1823.8,1823.7,1.7202]
[1746176485931,1.13483,1823.8,1823.7,6.36259]
[1746176486130,1.13483,1823.8,1823.7,10.05859]
[1746176487032,2.23116,1823.8,1823.7,10.05859]
[1746176489737,1.13483,1823.8,1823.7,10.05859]
[1746176489939,2.23116,1823.8,1823.7,10.05859]
[1746176490438,2.23116,1823.8,1823.7,8.9622]
[1746176490739,2.23116,1823.8,1823.7,7.242]
[1746176491226,2.23116,1823.8,1823.7,3.546]
[1746176492140,2.23116,1823.8,1823.7,7.242]
[1746176493140,1.13483,1823.8,1823.7,8.33839]
[1746176493341,1.13483,1823.8,1823.7,9.98589]
[1746176494340,2.23116,1823.8,1823.7,9.98589]
[1746176494534,1.13483,1823.8,1823.7,9.98589]
[1746176496442,2.23116,1823.8,1823.7,9.98589]
[1746176496942,1.13483,1823.8,1823.7,9.98589]
[1746176499840,2.23116,1823.8,1823.7,9.98589]
[1746176500043,2.23116,1823.8,1823.7,8.8895]
[1746176501143,2.23116,1823.8,1823.7,9.98589]
[1746176501341,1.13483,1823.8,1823.7,9.98589]
[1746176502042,2.23116,1823.8,1823.7,9.98589]
[1746176502242,1.13483,1823.8,1823.7,9.98589]
[1746176502941,2.23116,1823.8,1823.7,9.98589]
[1746176503143,2.23116,1823.8,1823.7,6.28989]
[1746176504039,2.23116,1823.8,1823.7,9.98589]
[1746176504747,2.23116,1823.8,1823.7,8.8895]
[1746176506944,2.23116,1823.8,1823.7,9.98589]
[1746176507146,2.23116,1823.8,1823.7,5.1935]
[1746176509046,2.23116,1823.8,1823.7,6.28989]
[1746176509241,2.23116,1823.8,1823.7,5.1935]
[1746176509746,2.23116,1823.8,1823.7,6.28989]
[1746176510845,1.13483,1823.8,1823.7,6.28989]
[1746176511244,2.23116,1823.8,1823.7,6.28989]
[1746176511445,2.23116,1823.8,1823.7,5.1935]
[1746176511747,2.23116,1823.8,1823.7,6.28989]
[1746176513641,2.23116,1823.8,1823.7,5.1935]
[1746176516147,2.23116,1823.8,1823.7,6.28989]
[1746176520450,2.23116,1823.8,1823.7,5.1935]
[1746176520753,2.23116,1823.8,1823.7,6.28989]
[1746176522056,1.13483,1823.8,1823.7,6.28989]
[1746176522647,3.65503885,1824.0,1823.9,1.09627]
[1746176522949,3.65503885,1824.0,1823.9,10.23607]
[1746176523255,3.65503885,1824.0,1823.9,13.93207]
[1746176523554,3.65503885,1824.0,1823.9,15.57827]
[1746176525854,3.65503885,1824.0,1823.9,15.99348153]
[1746176528553,1.702,1824.2,1823.9,22.13955337]
[1746176528750,1.702,1824.2,1824.1,4.30395]
[1746176528950,1.702,1824.2,1824.1,3.2078]
[1746176529149,1.702,1824.2,1824.1,5.90385]
[1746176530057,1.702,1824.2,1824.1,4.8077]
[1746176530557,1.702,1824.2,1824.1,5.90385]
[1746176531657,1.702,1824.2,1824.1,46.70385]
[1746176531957,1.702,1824.2,1824.1,43.49605]
[1746176532146,1.702,1824.2,1824.1,46.70385]
[1746176536571,0.8695,1824.3,1824.2,1.09609]
[1746176536764,2.5541,1824.6,1824.5,1.09591]
[1746176536957,3.384,1824.6,1824.5,7.82071]
[1746176537263,4.47985,1824.6,1824.5,51.2208]
[1746176537960,4.47985,1824.6,1824.5,52.8362]
[1746176538463,4.47985,1824.6,1824.5,51.2208]
[1746176538961,3.384,1824.6,1824.5,51.2208]
[1746176539162,4.47985,1824.6,1824.5,51.2208]
[1746176540160,3.384,1824.6,1824.5,51.2208]
[1746176540363,3.384,1824.6,1824.5,52.31671]
[1746176540662,3.384,1824.6,1824.5,51.2208]
[1746176540861,4.47985,1824.6,1824.5,52.31671]
[1746176541054,4.47985,1824.6,1824.5,51.2208]
[1746176542465,4.47985,1824.6,1824.5,48.013]
[1746176542658,4.47985,1824.6,1824.5,51.2208]
[1746176545462,9.47985,1824.6,1824.5,51.2208]
[1746176545668,9.47985,1824.6,1824.5,3.696]
[1746176550870,1.09603,1824.3,1824.2,44.0078]
[1746176551271,1.09603,1824.3,1824.2,47.7038]
[1746176551669,2.79583,1824.3,1824.2,47.7038]
[1746176554668,2.79583,1824.3,1824.2,49.4082]
[1746176558474,1.09603,1824.3,1824.2,49.4082]
[1746176560775,1.89039,1824.4,1824.2,50.50424]
[1746176560975,1.89039,1824.4,1824.3,1.7256]
[1746176561179,13.10728885,1824.8,1824.3,2.82163]
[1746176561476,1.09591,1824.5,1824.4,4.0156]
[1746176561677,1.09591,1824.5,1824.4,5.7412]
[1746176562273,1.09591,1824.5,1824.4,9.4372]
[1746176565783,1.09591,1824.5,1824.4,5.4216]
[1746176569781,1.09591,1824.5,1824.0,13.17434184]
[1746176569782,8.2078,1824.5,1824.0,10.45014184]
[1746176569981,6.24194,1824.4,1824.1,1.685]
[1746176570282,1.09609,1824.2,1824.1,42.485]
[1746176576092,1.09609,1824.2,1824.1,45.988]
[1746176578487,1.91389,1824.2,1824.1,45.988]
[1746176578688,3.55179,1824.2,1824.1,42.485]
[1746176578984,3.55179,1824.2,1824.1,40.8]
[1746176580390,3.55179,1824.2,1824.1,42.5384]
[1746176580990,3.55179,1824.2,1824.1,40.8]
[1746176581683,3.55179,1824.2,1824.1,42.5558]
[1746176582784,3.55179,1824.2,1824.1,40.8]
[1746176584792,1.09615,1824.1,1824.0,8.6596]
[1746176585093,2.82755,1824.1,1824.0,3.696]
[1746176585390,7.82755,1824.1,1824.0,3.696]
[1746176586087,7.82755,1824.1,1824.0,2.58381]
[1746176586287,1.09633,1823.8,1823.7,1.09131]
[1746176587183,2.82773,1823.8,1823.7,4.78731]
[1746176587393,6.03553,1823.8,1823.7,1.7205]
[1746176587588,1.09651,1823.5,1823.4,14.93599212]
[1746176587784,1.09651,1823.5,1823.4,48.04234184]
[1746176587985,1.09651,1823.5,1823.4,49.68134184]
[1746176588187,1.09651,1823.5,1823.4,53.37734184]
[1746176589287,2.81461,1823.5,1823.4,53.37734184]
[1746176590187,2.81461,1823.5,1823.4,12.57734184]
[1746176590491,2.81461,1823.5,1823.4,10.93834184]
[1746176590695,1.09681,1823.0,1822.9,3.2078]
[1746176590993,1.09681,1823.0,1822.9,4.0786]
[1746176591181,1.09681,1823.0,1822.9,7.7746]
[1746176591782,1.09678,1823.1,1822.9,7.7746]
[1746176591995,1.09678,1823.1,1823.0,1.7446]
[1746176593088,1.09678,1823.1,1823.0,5.4406]
[1746176594797,1.09678,1823.1,1823.0,9.74521]
[1746176595094,1.09678,1823.1,1823.0,8.6484]
[1746176595595,1.6567,1823.4,1823.1,1.09673]
[1746176595790,1.09663,1823.3,1823.2,4.8124]
[1746176595986,3.504,1823.6,1823.2,5.6488]
[1746176596188,1.09663,1823.3,1823.2,7.7402]
[1746176596601,1.09663,1823.3,1823.2,48.5402]
[1746176596790,1.09663,1823.3,1823.2,49.63689]
[1746176597100,1.09663,1823.3,1823.2,48.5402]
[1746176598698,1.09663,1823.3,1823.2,49.63689]
[1746176598899,1.0966,1823.4,1823.2,48.5402]
[1746176599090,1.0966,1823.4,1823.2,49.63686]
[1746176599601,1.09656,1823.5,1823.2,49.63686]
[1746176600098,1.09656,1823.5,1823.3,1.09663]
[1746176600300,1.09656,1823.5,1823.4,0.8509]
[1746176601101,1.09656,1823.5,1823.4,4.5469]
[1746176601492,9.45356,1823.9,1823.4,7.7547]
[1746176601693,1.0965,1823.6,1823.5,0.8561]
[1746176602098,1.0965,1823.6,1823.5,45.3521]
[1746176603492,1.0965,1823.6,1823.5,3.696]
[1746176604196,7.748,1823.6,1823.5,3.696]
[1746176604399,9.4704,1823.6,1823.5,3.696]
[1746176606994,1.09663,1823.3,1823.2,3.2078]
[1746176607195,1.09663,1823.3,1823.2,44.0078]
[1746176607698,1.09663,1823.3,1823.2,45.7077]
[1746176608001,1.92373,1823.3,1823.2,45.7077]
[1746176608207,1.92373,1823.3,1823.2,49.4037]
[1746176611904,1.09663,1823.3,1823.2,49.4037]
[1746176613205,7.8796,1823.6,1823.2,50.50037]
[1746176613503,7.8796,1823.6,1823.3,3.3952]
[1746176613707,1.09651,1823.5,1823.4,1.7527]
[1746176614203,1.09651,1823.5,1823.4,5.4487]
[1746176616098,2.75141,1823.5,1823.4,5.4487]
[1746176618807,2.75141,1823.5,1823.4,3.696]
[1746176623309,1.09675,1823.1,1823.0,4.0722]
[1746176623602,1.09675,1823.1,1823.0,5.7402]
[1746176623802,1.09675,1823.1,1823.0,46.5402]
[1746176624213,1.09675,1823.1,1823.0,50.2362]
[1746176626710,2.70445,1823.1,1823.0,50.2362]
[1746176627114,1.09675,1823.1,1823.0,50.2362]
[1746176628515,1.09675,1823.1,1823.0,49.3718]
[1746176629113,1.09675,1823.1,1823.0,46.164]
[1746176629902,1.09675,1823.1,1823.0,5.364]
[1746176630109,6.03685,1823.1,1823.0,2.47105]
[1746176631718,2.82905,1823.1,1823.0,2.47105]
[1746176632110,1.09675,1823.1,1823.0,4.11755]
[1746176634921,1.09675,1823.1,1823.0,4.92455]
[1746176635123,4.75178885,1823.1,1823.0,4.92455]
[1746176637724,3.65503885,1823.1,1823.0,4.92455]
[1746176637916,3.65503885,1823.1,1823.0,9.22916]
[1746176638222,3.65503885,1823.1,1823.0,14.22916]